Cogmind - Beta 15 @@@ ROGUE MODE // 2025.05.23 @ 05:36:41 // Winter2019/RPGLIKE Player: Toaster Result: Destroyed by G-50 Soldier with Heavy Laser Performance ------------- Evolutions (4) 2000 Regions Visited (9) 1800 Robots Destroyed (89) 445 Value Destroyed (3519) 3519 Prototype IDs (14) 280 Alien Tech Used (0) 0 Bonus (2793) 2793 TOTAL SCORE: 10837 Bonus ------- High Alert Combat Kills 26 Follower Combat Kills 1467 Network Hubs Disabled 200 Registered with UFD 300 Built Enhanced Grunts 300 Met R17 at Cetus 500 Cogmind --------- Core Integrity 0/1850 Matter 233/400 Energy 365/365 System Corruption 24% Temperature Cool (9) Movement Walking (125) Location -6/Hub_04(d) Parts ------- > --- POWER (2) -------- Light Angular Momentum Engine Neutrino Core > --- PROPULSION (3) --- Armored Leg Cargo Legs > --- UTILITY (7) ------ Armor Integrity Analyzer Kinecellerator Weapon Cycler Phase Shifter Centrium Medium Armor Plating High-powered Tractor Beam > --- WEAPON (4) ------- Heavy Flak Cannon Heavy Flak Cannon Bore Cannon > --- INVENTORY (1) ---- (None) Peak State ------------ > --- POWER ------------ Light Angular Momentum Engine Neutrino Core > --- PROPULSION ------- Armored Leg Cargo Legs > --- UTILITY ---------- Armor Integrity Analyzer Kinecellerator Weapon Cycler Phase Shifter Improved Medium Armor Plating Centrium Medium Armor Plating High-powered Tractor Beam > --- WEAPON ----------- Flak Cannon Heavy Flak Cannon Heavy Flak Cannon Bore Cannon > --- INVENTORY -------- (None) [Rating: 83] Favorites ----------- Power Ion Engine Engine Ion Engine Power Core Neutrino Core Propulsion Cargo Legs Leg Cargo Legs Utility Weapon Cycler Device Weapon Cycler Processor Armor Integrity Analyzer Protection Hardened Medium Armor Plating Weapon Heavy Flak Cannon Energy Gun Riot Gun Energy Cannon Subdweller Beam Cannon Ballistic Gun Makeshift Shrapnel Gun Ballistic Cannon Heavy Flak Cannon Special Weapon CPS Tube Build | -11 -10 -10 -8 -8 -6 -6 -6 -6 -6 ------- Run | Yrd Mat Sub Rec Scr Fac Ext Cet Arc Hub Slots Evolved 12 | 2 4 . 1 . 2 . . 2 1 Power 1 | . 1 . . . . . . . . Propulsion 2 | 1 . . 1 . . . . . . Utility 6 | . 2 . . . 1 . . 2 1 Weapon 3 | 1 1 . . . 1 . . . . Parts Attached 50 | 5 7 8 5 5 6 5 1 7 1 Power 6 | 1 1 . 1 . . 2 . 1 . Engine 5 | 1 1 . 1 . . 2 . . . Core 1 | . . . . . . . . 1 . Reactor . | . . . . . . . . . . Propulsion 7 | 2 . 3 1 . 1 . . . . Treads . | . . . . . . . . . . Leg 7 | 2 . 3 1 . 1 . . . . Wheel . | . . . . . . . . . . Hover . | . . . . . . . . . . Flight . | . . . . . . . . . . Utility 22 | . 3 2 2 3 2 3 1 5 1 Device 12 | . 2 1 1 2 1 1 . 3 1 Storage . | . . . . . . . . . . Processor 1 | . . . . . . . . 1 . Hackware . | . . . . . . . . . . Protection 9 | . 1 1 1 1 1 2 1 1 . Artifact . | . . . . . . . . . . Weapon 15 | 2 3 3 1 2 3 . . 1 . Energy Gun 4 | 2 1 . . 1 . . . . . Energy Cannon 4 | . 2 2 . . . . . . . Ballistic Gun 2 | . . 1 . . 1 . . . . Ballistic Cannon 4 | . . . 1 . 2 . . 1 . Launcher . | . . . . . . . . . . Special Weapon 1 | . . . . 1 . . . . . Impact Weapon . | . . . . . . . . . . Slashing Weapon . | . . . . . . . . . . Piercing Weapon . | . . . . . . . . . . Special Melee Weapon . | . . . . . . . . . . Unidentified Prototypes 1 | . . . . . . . 1 . . Parts Lost 4 | . . . . . . 2 . . 2 Power . | . . . . . . . . . . Propulsion . | . . . . . . . . . . Utility 3 | . . . . . . 2 . . 1 Weapon 1 | . . . . . . . . . 1 Highest Loss Streak 2 | . . . . . . 1 . . 2 To Critical Strikes . | . . . . . . . . . . Average Backups . | . . . . . . . 1 . . Power . | . . . . . . . . . . Propulsion . | . . . . . . . . . . Utility . | . . . . . . . 1 . . Weapon . | . . . . . . . . . . Tool/Special . | . . . . . . . . . . Unused Backups 5 | . . 1 1 2 1 . . . . Power . | . . . . . . . . . . Propulsion . | . . . . . . . . . . Utility 1 | . . . . . 1 . . . . Weapon 3 | . . 1 . 2 . . . . . Tool/Special 1 | . . . 1 . . . . . . Average Slot Usage (%) 85 | . 97 81 68 78 87 84 84 91 92 Engine 12 | . 15 18 15 15 13 14 15 7 6 Core 1 | . . . . . . . . 6 6 Leg 15 | . 29 15 8 15 13 14 15 14 12 Device 15 | . 14 9 9 10 20 16 7 20 23 Protection 11 | . 5 9 8 14 13 10 15 14 11 Energy Gun 5 | . 21 2 . 3 6 6 7 . . Energy Cannon 4 | . 9 17 9 3 . . . . . Ballistic Gun 3 | . . 7 7 7 7 . . . . Ballistic Cannon 14 | . . . 6 7 11 21 23 27 25 Peak Build Rating 83 | 5 12 32 41 49 65 65 66 79 83 Average Rating 49 | 3 8 23 34 42 60 61 61 74 81 On Entrance 41 | . 5 12 32 41 49 65 61 66 79 Naked Turns . | . . . . . . . . . . Heaviest Build 75 | 9 21 45 55 55 64 64 62 71 75 Greatest Support 87 | 25 25 70 87 87 87 86 86 86 86 Greatest Overweight (x) 2 | . . 2 . . . . . . . Average Overweight (x) . | . . . . . . . . . . Largest Inventory Capacity 1 | 1 1 1 1 1 1 1 1 1 1 Average Capacity 1 | 1 1 1 1 1 1 1 1 1 1 Most Carried 1 | 1 1 1 1 1 1 1 1 1 . Average Carried . | . . . . . . . 1 . . Final Capacity 1 | 1 1 1 1 1 1 1 1 1 1 Final Carried 1 | . 1 1 1 1 1 1 1 . . Class Distribution -------------------- 26% | Scavenger-Tank 25% | Gunner 19% | Tank 11% | Mutant 7% | Subdweller-Gunner 3% | Commander-Tank Dominant Class ---------------- Mutant | -10/Materials Subdweller-Gunner | -10/Subcaves Gunner | -8/Recycling Tank | -8/Scraptown Gunner | -6/Factory Tank | -6/Extension Commander-Tank | -6/Cetus Scavenger-Tank | -6/Archives Scavenger-Gunner | -6/Hub_04(d) Resources | -11 -10 -10 -8 -8 -6 -6 -6 -6 -6 ----------- Run | Yrd Mat Sub Rec Scr Fac Ext Cet Arc Hub Matter Collected 3413 | 219 85 145 73 70 675 1065 3 207 871 Remotely 2691 | . . . 30 70 675 975 . 70 871 Salvage Created 2213 | . 665 230 152 . 672 339 . . 155 Parts 141 | . 51 17 10 . 30 21 . 2 10 Haulers Intercepted 1 | . 1 . . . . . . . . Recyclers Shooed . | . . . . . . . . . . Parts Field Recycled . | . . . . . . . . . . Retrieved Matter . | . . . . . . . . . . Parts Self-Destructed 14 | . . 14 . . . . . . . Prevented . | . . . . . . . . . . Kills | -11 -10 -10 -8 -8 -6 -6 -6 -6 -6 ------- Run | Yrd Mat Sub Rec Scr Fac Ext Cet Arc Hub Combat Hostiles Destroyed 70 | . 18 6 3 . 20 16 1 1 5 Guns 25 | . 11 3 . . 4 7 . . . Cannons 40 | . 7 2 3 . 12 9 1 1 5 AOE 4 | . . . . . 4 . . . . Classes Destroyed 17 | . 6 2 1 . 4 1 . . 3 Worker 4 | . . . . . 1 1 . . 2 Tunneler 2 | . 1 . . . . 1 . . . Hauler 1 | . 1 . . . . . . . . Operator 1 | . 1 . . . . . . . . Turret 2 | . . 2 . . . . . . . Watcher 9 | . 3 . . . 3 3 . . . Swarmer 14 | . 3 3 . . 8 . . . . Grunt 29 | . 15 . . . 8 5 . . 1 Duelist 1 | . . . . . 1 . . . . Protector 1 | . . . . . . . . . 1 Sentry 10 | . . . 3 . . 5 . 1 1 Specialist 1 | . . . . . . . . . 1 Hunter 5 | . . . . . 1 4 . . . Programmer 2 | . . . . . 2 . . . . Heavy 1 | . . . . . . . . . 1 Behemoth 2 | . . . . . . 2 . . . Cetus Guard 1 | . . . . . . . 1 . . Subdweller 3 | . . 3 . . . . . . . Best Kill Streak 8 | . 3 5 1 . 8 6 1 1 4 Combat Bots Only 6 | . 3 3 1 . 6 5 1 1 3 Max Kills in Single Turn 3 | . 1 1 1 . 3 1 1 1 2 Gunslinging . | . . . . . . . . . . Exploded 3 | . . . . . 3 . . . . Melee . | . . . . . . . . . . Uniques/NPCs Destroyed . | . . . . . . . . . . Combat | -11 -10 -10 -8 -8 -6 -6 -6 -6 -6 -------- Run | Yrd Mat Sub Rec Scr Fac Ext Cet Arc Hub Hostile Shots Fired 625 | . 68 127 4 . 79 233 10 2 102 Missed 224 | . 32 51 2 . 26 80 6 1 26 Hits 401 | . 36 76 2 . 53 153 4 1 76 Projectile 401 | . 36 76 2 . 53 153 4 1 76 AOE 1 | . . . . . . . . . 1 Critical Strikes 14 | . 1 2 . . . 2 2 . 7 Damage Taken 7111 | . 415 930 29 . 968 2061 149 20 2539 Core 4748 | . 340 544 17 . 618 1327 103 8 1791 Absorbed by Shields 62 | . . . . . . . 62 . . Redirected to Core 4197 | . 238 402 17 . 564 1190 88 8 1690 Ignored by Resistances 121 | . . . . . . . 13 . 108 Regen/Repaired (Parts) 55 | . . . . . 23 32 . . . Core Remaining (%) 95 | 100 . . . 91 . . . . . Volleys Fired 230 | . 72 24 4 . 33 52 4 2 39 Largest 4 | . 3 3 3 . 4 4 4 3 4 Hottest 184 | . 160 184 184 . 175 175 175 125 173 Shots Fired 715 | . 150 66 12 . 131 182 15 6 153 Gun 230 | . 101 22 4 . 50 50 3 . . Cannon 485 | . 49 44 8 . 81 132 12 6 153 Launcher . | . . . . . . . . . . Special . | . . . . . . . . . . Kinetic 420 | . . 13 5 . 99 132 12 6 153 Thermal 129 | . 78 44 7 . . . . . . Explosive . | . . . . . . . . . . Electromagnetic 166 | . 72 9 . . 32 50 3 . . Robot Hit Streak 12 | . 8 10 5 . 9 12 4 3 6 Robot Miss Streak 32 | . 14 12 2 . 12 7 5 5 32 Penetration Max 2 | . . . . . . . . . 2 Secondary Targets 1 | . 1 . . . . . . . . Max Gunslinging Chain 1 | . 1 . . . . . . . . Shots Hit Robots 444 | . 76 32 4 . 81 137 13 6 95 Core Hits 402 | . 36 9 5 . 104 139 12 9 88 Critical Kills 3 | . . 2 . . . . . . 1 Critical Parts Destroyed 4 | . . . . . . . . . 4 Critical Strikes 11 | . 4 2 . . . . . . 5 Burn 3 | . 3 . . . . . . . . Meltdown 2 | . . 2 . . . . . . . Destroy 5 | . . . . . . . . . 5 Corrupt 1 | . 1 . . . . . . . . Melee Attacks . | . . . . . . . . . . Impact . | . . . . . . . . . . Slashing . | . . . . . . . . . . Piercing . | . . . . . . . . . . Sneak Attacks . | . . . . . . . . . . Combat Hostiles . | . . . . . . . . . . Follow-up Attacks . | . . . . . . . . . . Damage Inflicted 9729 | . 1425 659 186 . 1987 3170 334 151 1817 Guns 2177 | . 810 181 31 . 507 606 42 . . Cannons 6960 | . 371 478 115 . 1250 2493 292 144 1817 Explosions 463 | . 172 . . . 230 61 . . . Melee . | . . . . . . . . . . Ramming 129 | . 72 . 40 . . 10 . 7 . Kinetic 6366 | . . 130 31 . 1459 2493 292 144 1817 Thermal 1723 | . 839 478 115 . 230 61 . . . Explosive . | . . . . . . . . . . Electromagnetic 1511 | . 514 51 . . 298 606 42 . . Impact . | . . . . . . . . . . Slashing . | . . . . . . . . . . Piercing . | . . . . . . . . . . Highest Corruption 24 | . . . . . 1 . . . 24 Average Corruption 10 | . . . . . 1 . . . 13 Corruption Purged 1 | . . . . . 1 . . . . Corruption Blocked . | . . . . . . . . . . Effects 9 | . . . . . . . . . 9 Message Errors 3 | . . . . . . . . . 3 Matter Fused 1 | . . . . . . . . . 1 Misfires 2 | . . . . . . . . . 2 Misdirections 1 | . . . . . . . . . 1 Weapon Failures 2 | . . . . . . . . . 2 Overload Shots . | . . . . . . . . . . Overflow Damage 74 | . 23 44 . . . 1 . 4 2 Projectiles 51 | . . 44 . . . 1 . 4 2 Explosions 22 | . 22 . . . . . . . . Melee 1 | . 1 . . . . . . . . Knockbacks 66 | . . . 1 . 29 19 . 2 15 Impact 2 | . . . 1 . . 1 . . . Kinetic 62 | . . . . . 27 18 . 2 15 Secondary 2 | . . . . . 2 . . . . Self-Inflicted Damage 85 | . . . . . 85 . . . . Shots 2 | . . . . . 2 . . . . Rammed . | . . . . . . . . . . Targets Rammed 24 | . 19 . 3 . . 1 . 1 . Kicked 24 | . 19 . 3 . . 1 . 1 . Crushed . | . . . . . . . . . . Highest Temperature 370 | . 348 194 184 4 370 28 6 . 56 Average Temperature 41 | . 100 100 81 2 110 10 4 . 8 Received Heat Transfer 1219 | . 231 216 9 . 189 318 13 . 243 Effects 1 | . 1 . . . . . . . . Damage (minor) 1 | . 1 . . . . . . . . Siege Activations . | . . . . . . . . . . Martial Activations . | . . . . . . . . . . Shielding Activations . | . . . . . . . . . . Robots Disrupted . | . . . . . . . . . . Combat Hostiles . | . . . . . . . . . . Robots Corrupted 1 | . 1 . . . . . . . . Combat Hostiles . | . . . . . . . . . . Parts Fried 3 | . 2 . . . 1 . . . . Impact Corruptions 1 | . 1 . . . . . . . . Robots Melted 2 | . . 2 . . . . . . . Combat Hostiles 1 | . . 1 . . . . . . . Parts Melted 6 | . 2 4 . . . . . . . Heat Transferred 3114 | . 1902 814 148 . 200 50 . . . Parts Sabotaged . | . . . . . . . . . . Parts Stolen . | . . . . . . . . . . Parts Stripped . | . . . . . . . . . . Power Chain Reactions 7 | . 3 . . . 3 1 . . . Alert | -11 -10 -10 -8 -8 -6 -6 -6 -6 -6 ------- Run | Yrd Mat Sub Rec Scr Fac Ext Cet Arc Hub Maximum Alert Level 2 | . . . . . 1 1 . . 2 Low Security (%) 96 | 100 100 . 100 . 94 95 100 100 26 Level 1 1 | . . . . . 5 4 . . 4 Level 2 2 | . . . . . . . . . 68 Level 3 . | . . . . . . . . . . Level 4 . | . . . . . . . . . . Level 5 . | . . . . . . . . . . High Security . | . . . . . . . . . . Max Security . | . . . . . . . . . . Peak Influence 531 | . 156 . 50 . 220 233 177 197 531 Initial 124 | . . . 29 . . 103 124 54 . Average 48 | . 79 . 10 . 50 59 81 10 334 Influence Increases 3524 | . 598 100 269 . 545 704 335 223 750 Destroy 0b10 Robot/C 1880 | . 360 100 60 . 400 440 160 80 280 Destroy 0b10 Robot/NC 115 | . 30 . . . 20 25 10 5 25 Destroy Leader 294 | . 88 . . . 86 56 . . 64 Allied During Kill 642 | . . . . . . 117 147 85 293 Successful Hack 117 | . 31 . 27 . 17 42 . . . Select Force Hacks 210 | . 30 . 180 . . . . . . Disable Machine 135 | . 30 . . . 15 15 . 45 30 Destroy Structure 101 | . 14 . 2 . 7 9 18 8 43 Lose Combat Pursuer 30 | . 15 . . . . . . . 15 Influence Decreases 3046 | . 495 141 331 . 333 692 422 360 272 Entered New Map 376 | . . 51 33 . . 109 100 83 . Time Decay 2281 | . 495 90 298 . 333 474 222 217 152 Lost Part 40 | . . . . . . 20 . . 20 Lost Ally 349 | . . . . . . 89 100 60 100 Squads Dispatched 18 | . 4 . . . 6 3 . . 5 Investigation 7 | . 3 . . . 2 2 . . . Extermination 2 | . . . . . 2 . . . . Reinforcement 7 | . 1 . . . 2 1 . . 3 Assault . | . . . . . . . . . . Garrison 2 | . . . . . . . . . 2 Intercept . | . . . . . . . . . . Searches Triggered . | . . . . . . . . . . Construction Impeded . | . . . . . . . . . . Haulers Reinforced . | . . . . . . . . . . Active Scanning Responses . | . . . . . . . . . . Cargo Convoy Interrupts . | . . . . . . . . . . Stealth | -11 -10 -10 -8 -8 -6 -6 -6 -6 -6 --------- Run | Yrd Mat Sub Rec Scr Fac Ext Cet Arc Hub Distress Signals 8 | . 2 . . . . 1 2 . 3 Communications Jammed . | . . . . . . . . . . Distress Signals . | . . . . . . . . . . Times Spotted 135 | . 23 18 1 . 26 28 8 9 22 Peak Tracking Total 7 | . 4 7 1 . 6 5 5 1 5 Tactical Retreats 2 | . 1 . . . . . . . 1 Traps | -11 -10 -10 -8 -8 -6 -6 -6 -6 -6 ------- Run | Yrd Mat Sub Rec Scr Fac Ext Cet Arc Hub Traps Triggered 6 | . . 1 . . . 5 . . . Indirectly . | . . . . . . . . . . Trap Hack Attempts . | . . . . . . . . . . Triggered . | . . . . . . . . . . Disarmed . | . . . . . . . . . . Reprogrammed . | . . . . . . . . . . Reused . | . . . . . . . . . . Traps Extracted . | . . . . . . . . . . Installed . | . . . . . . . . . . Triggered . | . . . . . . . . . . Machines | -11 -10 -10 -8 -8 -6 -6 -6 -6 -6 ---------- Run | Yrd Mat Sub Rec Scr Fac Ext Cet Arc Hub Machines Disabled 12 | . 2 3 . . 1 1 . 3 2 Max in Single Turn 2 | . 1 1 . . 1 1 . . 2 Network Hub 1 | . . . . . . . . . 1 Machines Repaired . | . . . . . . . . . . Machines Dismantled . | . . . . . . . . . . Machines Sabotaged . | . . . . . . . . . . Overloaded Fab Kills . | . . . . . . . . . . Hacking | -11 -10 -10 -8 -8 -6 -6 -6 -6 -6 --------- Run | Yrd Mat Sub Rec Scr Fac Ext Cet Arc Hub Machines Accessed 47 | . 8 2 13 1 5 16 1 . 1 Terminals 32 | . 6 . 6 . 3 15 1 . 1 Fabricators . | . . . . . . . . . . Repair Stations 3 | . . . . . 2 1 . . . Recycling Units 9 | . 2 . 7 . . . . . . Scanalyzers . | . . . . . . . . . . Garrison Access . | . . . . . . . . . . Total Hacks 99 | . 21 6 35 4 6 22 3 . 2 Successful 63 | . 12 6 24 4 4 13 . . . Failed 36 | . 9 . 11 . 2 9 3 . 2 Catastrophic 5 | . . . . . 1 2 2 . . Database Lockouts . | . . . . . . . . . . Manual 45 | . 10 . 20 . 5 6 2 . 2 Terminals 58 | . 14 . 15 . 4 20 3 . 2 Fabricators . | . . . . . . . . . . Repair Stations 4 | . . . . . 2 2 . . . Recycling Units 27 | . 7 . 20 . . . . . . Scanalyzers . | . . . . . . . . . . Garrison Access . | . . . . . . . . . . Terminal Hacks 26 | . 4 6 1 4 1 10 . . . Record 9 | . . 5 . 4 . . . . . Part Schematic 1 | . . . 1 . . . . . . Prototype ID Bank 1 | . 1 . . . . . . . . Open Door 11 | . . . . . 1 10 . . . Locate Traps 3 | . 3 . . . . . . . . Proto ID Catalog 1 | . . 1 . . . . . . . Fabricator Hacks . | . . . . . . . . . . Repair Station Hacks . | . . . . . . . . . . Recycling Unit Hacks 13 | . 2 . 11 . . . . . . Report Inventory 10 | . 2 . 8 . . . . . . Retrieve Components 3 | . . . 3 . . . . . . Scanalyzer . | . . . . . . . . . . Garrison Access Hacks . | . . . . . . . . . . Unauthorized Hacks 24 | . 6 . 12 . 3 3 . . . Terminals 14 | . 5 . 6 . 1 2 . . . Botnet 14 | . 5 . 6 . 1 2 . . . Fabricators . | . . . . . . . . . . Repair Stations 3 | . . . . . 2 1 . . . Patch 3 | . . . . . 2 1 . . . Recycling Units 7 | . 1 . 6 . . . . . . Tunnel 7 | . 1 . 6 . . . . . . Scanalyzers . | . . . . . . . . . . Garrison Access . | . . . . . . . . . . Data Cores Recovered . | . . . . . . . . . . Used . | . . . . . . . . . . Hacking Detections 26 | . 7 . 7 . 2 8 1 . 1 Full Trace Events 5 | . 2 . 2 . . 1 . . . Feedback Events . | . . . . . . . . . . Feedback Blocked . | . . . . . . . . . . Robot Schematics Acquired . | . . . . . . . . . . Robots Built . | . . . . . . . . . . Authchips . | . . . . . . . . . . Time . | . . . . . . . . . . Total Robot Build Rating . | . . . . . . . . . . Part Schematics Acquired 1 | . . . 1 . . . . . . Parts Built . | . . . . . . . . . . Authchips . | . . . . . . . . . . Time . | . . . . . . . . . . Total Part Build Rating . | . . . . . . . . . . Parts Repaired . | . . . . . . . . . . Time . | . . . . . . . . . . Parts Recycled . | . . . . . . . . . . Recycled Matter . | . . . . . . . . . . Retrieved Matter . | . . . . . . . . . . Retrieved Components 13 | . . . 13 . . . . . . Parts Scanalyzed . | . . . . . . . . . . Part Schematics Acquired . | . . . . . . . . . . Parts Damaged . | . . . . . . . . . . Bothacking | -11 -10 -10 -8 -8 -6 -6 -6 -6 -6 ------------ Run | Yrd Mat Sub Rec Scr Fac Ext Cet Arc Hub Used RIF Installer . | . . . . . . . . . . Robots Hacked . | . . . . . . . . . . Non-combat . | . . . . . . . . . . Combat . | . . . . . . . . . . Robot Hacks Applied . | . . . . . . . . . . Relay Couplers Released . | . . . . . . . . . . Fabnet Peak Effective % . | . . . . . . . . . . Robots Rewired 4 | . . . . . . 4 . . . Allies Hacked . | . . . . . . . . . . Hacks Repelled . | . . . . . . . . . . Allies | -11 -10 -10 -8 -8 -6 -6 -6 -6 -6 -------- Run | Yrd Mat Sub Rec Scr Fac Ext Cet Arc Hub Total Allies 24 | . . . . . . 19 5 . . Largest Group 13 | . . . . . . 13 12 10 6 Highest-Rated Group 766 | . . . . . . 529 766 756 509 Highest-Rated Ally 159 | . . . . . . 159 159 159 96 Total Orders 4 | . . . . . . 2 . 2 . STAY 2 | . . . . . . 1 . 1 . FOLLOW 2 | . . . . . . 1 . 1 . Ally Attacks 234 | . . . . . . 32 76 33 93 Total Damage 5768 | . . . . . . 559 2255 1055 1899 Kills 33 | . . . . . . 6 11 4 12 Allies Corrupted 1 | . . . . . . . . . 1 Allies Melted . | . . . . . . . . . . Intel | -11 -10 -10 -8 -8 -6 -6 -6 -6 -6 ------- Run | Yrd Mat Sub Rec Scr Fac Ext Cet Arc Hub Active Infowar (turns) 498 | . . . . . . 498 . . . IFF 498 | . . . . . . 498 . . . Robot Analysis Total . | . . . . . . . . . . Derelict Logs Recovered 3 | . . 1 . 2 . . . . . Drone Launches . | . . . . . . . . . . Drone Recoveries . | . . . . . . . . . . Exploration | -11 -10 -10 -8 -8 -6 -6 -6 -6 -6 ------------- Run | Yrd Mat Sub Rec Scr Fac Ext Cet Arc Hub Turns Passed 15482 | 56 2072 1239 1565 2265 1392 1677 574 4226 416 Spaces Moved 8072 | 45 1361 892 1156 1730 900 1074 340 343 231 Core 8 | 7 . 1 . . . . . . . Treads . | . . . . . . . . . . Legs 8064 | 38 1361 891 1156 1730 900 1074 340 343 231 Wheels . | . . . . . . . . . . Hover . | . . . . . . . . . . Flight . | . . . . . . . . . . Fastest Speed 50 | 50 120 120 130 130 125 125 125 125 125 Average Speed 125 | 109 120 123 130 130 125 125 125 125 125 Slowest Speed 190 | 120 120 190 130 130 130 125 125 125 125 Overloaded Moves . | . . . . . . . . . . Propulsion Burnouts . | . . . . . . . . . . Robots Hopped . | . . . . . . . . . . Potential Cave-ins . | . . . . . . . . . . Cave-ins Triggered . | . . . . . . . . . . Exploration Rate (%) 63 | 4 99 41 98 88 14 85 78 100 26 Regions Visited 9 Branch Regions 7 Pre-discovered Areas 9 | . 1 2 6 . . . . . . Known Exits Taken 1 | . . 1 . . . . . . . Unknown Exits Taken 8 | 1 1 . 1 1 1 1 1 1 . Scrap Searched 12 | . . 7 . 5 . . . . . Spaces Dug . | . . . . . . . . . . Terrain Destroyed 61 | . 12 6 2 . 6 11 . . 24 Melee . | . . . . . . . . . . Projectile 32 | . . 6 2 . . . . . 24 AOE 29 | . 12 . . . 6 11 . . . Terrain Rammed . | . . . . . . . . . . Walls Destroyed . | . . . . . . . . . . Machines Disabled . | . . . . . . . . . . Actions | -11 -10 -10 -8 -8 -6 -6 -6 -6 -6 --------- Run | Yrd Mat Sub Rec Scr Fac Ext Cet Arc Hub Total 12978 | 50 1649 980 1208 1746 1112 1335 481 4136 281 Wait 4328 | . 164 7 29 . 159 103 115 3750 1 Move 8063 | 44 1360 891 1155 1729 899 1073 339 342 231 Hop . | . . . . . . . . . . Pick Up 18 | 1 2 3 2 5 2 1 . 2 . Fast Attach 39 | 4 6 7 4 3 4 4 2 4 1 Attach 8 | 1 1 . . 2 1 1 . 2 . Detach 7 | . 1 . . . 2 3 . 1 . Swap 10 | . . 1 1 2 1 4 . 1 . Drop 39 | . 2 12 4 5 5 5 2 4 . Fire 230 | . 72 24 4 . 33 52 4 2 39 Melee . | . . . . . . . . . . Ram . | . . . . . . . . . . Kick 24 | . 19 . 3 . . 1 . 1 . Crush . | . . . . . . . . . . Escape Stasis 10 | . . . . . . 10 . . . Rewire 45 | . . . . . . 45 . . . Trap . | . . . . . . . . . . Miscellaneous 157 | . 22 35 6 . 6 33 19 27 9 Route ------- -11/Scrapyard -10/Materials (discovered 6 exits: [*Mat x3] / [*Min x2] / *Sub) -10/Subcaves (discovered 4 exits: [*Mat x2] / *Rec / *Scr) -8/Recycling (discovered 2 exits: *Fac / *Scr) -8/Scraptown (discovered 2 exits: *Fac x2) -6/Factory (discovered 3 exits: [*Fac] / [*Low] / *Ext) -6/Extension (discovered 2 exits: [*Fac] / *Cet) -6/Cetus (discovered 3 exits: [*Fac x2] / *Arc) -6/Archives (discovered 3 exits: [*Fac] / *Hub x2) -6/Hub_04(d) (discovered 1 exit: [*Fac]) History --------- Turn | Location | Event 1 | -11/Scrapyard | Upgraded with Propulsion slot (x1) 1 | -11/Scrapyard | Upgraded with Weapon slot (x1) 4 | -11/Scrapyard | Discovered new exit (range 16) 57 | -11/Scrapyard | Entered Materials 306 | -10/Materials | Build established: Mutant 510 | -10/Materials | Discovered new exit (range 12) 693 | -10/Materials | Discovered new exit (range 14) 1010 | -10/Materials | Reached level 2 1049 | -10/Materials | Discovered new exit (range 7) 1206 | -10/Materials | Upgraded with Utility slot (x1) 1289 | -10/Materials | Discovered new exit (range 7) 1343 | -10/Materials | Discovered new exit (range 16) 1582 | -10/Materials | Discovered new exit (range 5) 1712 | -10/Materials | Upgraded with Utility slot (x1) 1830 | -10/Materials | Upgraded with Power slot (x1) 1830 | -10/Materials | Upgraded with Weapon slot (x1) 2129 | -10/Materials | Entered Subcaves 2130 | -10/Subcaves | Approached by a straggling Scientist 2131 | -10/Subcaves | Reached level 3 2156 | -10/Subcaves | Build established: Gunner 2208 | -10/Subcaves | Shifting Twisted Machinery released Sub. Beam Cannon 2210 | -10/Subcaves | Learned 4 Materials zone layouts 2222 | -10/Subcaves | Discovered new exit (range 6) 2225 | -10/Subcaves | Ambushed by swarm of Subdwellers 2235 | -10/Subcaves | Disturbed a concealed Subdweller 2240 | -10/Subcaves | Disturbed a concealed Subdweller 2252 | -10/Subcaves | Core integrity fell below 50% 2415 | -10/Subcaves | Scientist uncovered a shortcut to Scraptown 2624 | -10/Subcaves | Discovered new exit (range 15) 2780 | -10/Subcaves | Build established: Subdweller-Gunner 2791 | -10/Subcaves | Visited Clippyterm 2795 | -10/Subcaves | Learned location of Deep Caves (-6) 2795 | -10/Subcaves | Identified exit to Recycling 2828 | -10/Subcaves | Learned location of Zion (-6) 2828 | -10/Subcaves | Met a Zionite searching for "candidates" 2917 | -10/Subcaves | Visited 4L-MR0's lab 2935 | -10/Subcaves | Found Cargo Legs 2936 | -10/Subcaves | Attached Cargo Legs, gained temporary slots: Utility x2 3368 | -10/Subcaves | Entered Recycling 3370 | -8/Recycling | Reached level 4 3935 | -8/Recycling | Build established: Gunner 3967 | -8/Recycling | Scanned before Scraplab entrance 4029 | -8/Recycling | Discovered new exit (range 17) 4246 | -8/Recycling | Reached level 5 4722 | -8/Recycling | Upgraded with Propulsion slot (x1) 4918 | -8/Recycling | Entered Scraplab 4928 | -8/Recycling | Discovered new exit (range 4) 4933 | -8/Recycling | Entered Scraptown 5050 | -8/Scraptown | Build established: Tank 5169 | -8/Scraptown | Visited Supply Room 5213 | -8/Scraptown | Visited Supply Room 5243 | -8/Scraptown | Visited Assassins FH 5270 | -8/Scraptown | Visited Shadow of the Wyrm 5346 | -8/Scraptown | Scanned Subdweller tech in exchange for log data 5349 | -8/Scraptown | Learned Factory terminal intel 5351 | -8/Scraptown | Learned Research trap positions 5372 | -8/Scraptown | Discovered new exit (range 11) 5721 | -8/Scraptown | Visited Red Mages 5795 | -8/Scraptown | Visited Junk Repository 5893 | -8/Scraptown | Visited UFD Registry 5893 | -8/Scraptown | Registered with UFD as "Shadowthruster" 5975 | -8/Scraptown | Visited Botcube Research 6035 | -8/Scraptown | Delivered Scrap Shield to a Scientist 6173 | -8/Scraptown | Visited Derelict Rescue Squad 6195 | -8/Scraptown | Visited Research Penetration Think Tank 6232 | -8/Scraptown | Visited Junk Repository 6357 | -8/Scraptown | Visited Chapter 10 6380 | -8/Scraptown | Visited Curators Association 7027 | -8/Scraptown | Visited Abandonware Association 7037 | -8/Scraptown | Build established: Gunner 7079 | -8/Scraptown | Learned abandonware demo "ERRANTS.EXE" 7079 | -8/Scraptown | Learned abandonware demo "SHUTEYE.EXE" 7189 | -8/Scraptown | Discovered new exit (range 5) 7198 | -8/Scraptown | Entered Factory 7199 | -6/Factory | Loaded intel: 28 terminal locations 7200 | -6/Factory | Reached level 6 7202 | -6/Factory | Upgraded with Weapon slot (x1) 7466 | -6/Factory | Discovered new exit (range 8) 7495 | -6/Factory | Reached level 7 7504 | -6/Factory | Upgraded with Utility slot (x1) 7555 | -6/Factory | Core integrity fell below 50% 8320 | -6/Factory | Discovered new exit (range 5) 8354 | -6/Factory | Discovered new exit (range 18) 8499 | -6/Factory | Core integrity fell below 20% 8500 | -6/Factory | Reached level 8 8590 | -6/Factory | Entered Extension 8592 | -6/Extension | Reached level 9 8711 | -6/Extension | Rescued a captive Derelict 8740 | -6/Extension | Build established: Tank 9114 | -6/Extension | Rescued a captive Derelict 9130 | -6/Extension | Spotted B-75 Beast 9335 | -6/Extension | Build established: Commander-Gunner 9576 | -6/Extension | Spotted B-75 Beast 9610 | -6/Extension | Lost 3 allies 9629 | -6/Extension | Reached level 10 9651 | -6/Extension | Destroyed B-75 Beast 9751 | -6/Extension | Destroyed B-75 Beast 9772 | -6/Extension | Build established: Gunner 9878 | -6/Extension | Rescued a captive Derelict 9892 | -6/Extension | Rescued a captive Derelict 9894 | -6/Extension | Rescued a captive Derelict 9971 | -6/Extension | Rescued a captive Derelict 9971 | -6/Extension | Rescued a captive Derelict 10000 | -6/Extension | Rescued a captive Derelict 10000 | -6/Extension | Rescued a captive Derelict 10051 | -6/Extension | Rescued a captive Derelict 10059 | -6/Extension | Rescued a captive Derelict 10077 | -6/Extension | Rescued a captive Derelict 10078 | -6/Extension | Rescued a captive Derelict 10083 | -6/Extension | Build established: Tank 10104 | -6/Extension | Rescued a captive Derelict 10180 | -6/Extension | Reached level 11 10190 | -6/Extension | Rescued A7 10222 | -6/Extension | Discovered new exit (range 10) 10224 | -6/Extension | Discovered new exit (range 6) 10267 | -6/Extension | Entered Cetus 10267 | -6/Cetus | Accompanied by 12 allies (A7) 10272 | -6/Cetus | Acquired a Cetus Manufacturing Module code from A7 10284 | -6/Cetus | Spotted Cetus Guard 10284 | -6/Cetus | Spotted Cetus Guard 10288 | -6/Cetus | Spotted Cetus Guard 10292 | -6/Cetus | Allies destroyed Cetus Guard 10294 | -6/Cetus | Spotted Cetus Guard 10316 | -6/Cetus | Reached level 12 10316 | -6/Cetus | Allies destroyed Cetus Guard 10322 | -6/Cetus | Allies destroyed Cetus Guard 10357 | -6/Cetus | Lost 7 allies 10381 | -6/Cetus | Started Cetus Manufacturing Module 10406 | -6/Cetus | Manufactured an Enhanced Grunt 10431 | -6/Cetus | Manufactured an Enhanced Grunt 10456 | -6/Cetus | Manufactured an Enhanced Grunt 10481 | -6/Cetus | Manufactured an Enhanced Grunt 10506 | -6/Cetus | Manufactured an Enhanced Grunt 10549 | -6/Cetus | Discovered new exit (range 19) 10665 | -6/Cetus | Discovered new exit (range 18) 10714 | -6/Cetus | Spotted Cetus Guard 10715 | -6/Cetus | Spotted Cetus Guard 10716 | -6/Cetus | Spotted Cetus Guard 10719 | -6/Cetus | Spotted Cetus Guard 10724 | -6/Cetus | Discovered new exit (range 19) 10725 | -6/Cetus | Allies destroyed Cetus Guard 10728 | -6/Cetus | Allies destroyed Cetus Guard 10733 | -6/Cetus | Destroyed Cetus Guard 10738 | -6/Cetus | Allies destroyed Cetus Guard 10744 | -6/Cetus | Reached level 13 10744 | -6/Cetus | Met Revision 17 10787 | -6/Cetus | Build established: Commander-Tank 10841 | -6/Cetus | Entered Archives 10841 | -6/Archives | Accompanied by 10 allies (A7) 10882 | -6/Archives | Reached level 14 10897 | -6/Archives | Discovered new exit (range 19) 10901 | -6/Archives | Lost 3 allies 10924 | -6/Archives | Discovered new exit (range 18) 10947 | -6/Archives | Unable to access archive contents 11006 | -6/Archives | Upgraded with Utility slot (x1) 11013 | -6/Archives | Discovered new exit (range 19) 11368 | -6/Archives | Build established: Scavenger-Tank 15019 | -6/Archives | Upgraded with Utility slot (x1) 15067 | -6/Archives | Entered Hub_04(d) 15067 | -6/Hub_04(d) | Accompanied by 6 allies 15170 | -6/Hub_04(d) | Garrison activated, responded to threat 15175 | -6/Hub_04(d) | Reached level 15 15186 | -6/Hub_04(d) | Reached level 16 15206 | -6/Hub_04(d) | Upgraded with Utility slot (x1) 15350 | -6/Hub_04(d) | Network Hub disabled 15353 | -6/Hub_04(d) | Spotted Lightning 15354 | -6/Hub_04(d) | Discovered new exit (range 18) 15354 | -6/Hub_04(d) | Spotted Lightning 15354 | -6/Hub_04(d) | Spotted Lightning 15386 | -6/Hub_04(d) | System corruption reached 10% 15391 | -6/Hub_04(d) | Reached level 17 15391 | -6/Hub_04(d) | Allies destroyed Lightning 15403 | -6/Hub_04(d) | Lost 5 allies 15428 | -6/Hub_04(d) | Allies destroyed Lightning 15477 | -6/Hub_04(d) | Garrison activated, responded to threat 15483 | -6/Hub_04(d) | Destroyed by G-50 Soldier with Heavy Laser Last Messages --------------- 15462_ HV Slug penetrates Wall. 15464_ Penetrated by EMDS Slug. 15465_ HV Slug penetrates Earth. 15467_ HV Slug penetrates Wall. 15469_ System corrupted: FCS attempts to trigger Bore Cannon. 15469_ System corrupted: Bore Cannon misfires. 15469_ HV Slug penetrates Wall. 15469_ Penetrated by EMDS Slug. 15470_ Lightning knocked back. 15470_ HV Slug penetrates Wall. 15472_ Penetrated by EMDS Slug. 15474_ HV Slug penetrates Wall. 15477_ Lightning calls for garrison reinforcements. 15477_ ALERT: Activating Garrison Access H001. 15477_ HV Slug penetrates Wall. 15478_ Penetrated by EMDS Slug. 15480_ System corrupted: Hvy. Flak Cannon jammed. 15482_ Flak Cannon destroyed. 15482_ HV Slug penetrates Wall. 15482_ Penetrated by EMDS Slug. Map ----- +----------------------------------------------------+ | ??## ##????????????????????????????????# | | ???# #?????????????????????????????????# ## | | ??## ##????????????????????????????????# #? | | ??# #????????????????????????????????# #? | | ??# ####?????????????????????????????# *## | | ??# ## ####?????????????????????????# [=#! | | ??## ## #######???????????????????+ *+! | | ???# ###?????????????????# !#= | | ??## # #####?????????????# !# | | ??# " """""""""";; # #?????????????# ## | | ??#"[" " % ; #???????##?????# ## | | ###" !! % ; ##????? ?????# = | | # "=%=" h ; #"####? ????## | | # "]! ! !!% ";;;"# # ???# | | " !=" ] = " % " ?? " | | " " ]! " < " = " % | | " """ "";;;" " %%= # ##### | | " " " ; ""? """###"##### ???##+ | | ?### # ; ; # " #???#!? ???# | | ???# # ; ; #??? ?????# ???# " | | ???# # ; ; #??#??????????"% ???# " | | ???# " ;;;;;;;;;;;;;;#;##? #?????????#=% ???# " | | ???# # ; # #????????? = ????+ " | | ???# # ; g # #????????#### ????# | | ???# ######## # % g; #???????????# ????### | | ???# #??????### @; #??????????? ???????? | | ???# ?????????# ; #???????????????????? | | ???? ?????????+ ] ; #???????????????????? | | ????#?????????# ; ;#??????????????????? | | ??????????????# ; h;#??????????????????? | | ??????????????###;;;;;;;; ##??????????????????? | | ????????????????#### ;; #???????????????????? | | ???????????????????###;# ???????????????????? | | ????????????????????? ??????????????????? | | ????????????????????? " ?????????????????? | | ?????????????????????### ##?????????????????? | | ????????????????????????#+###??????????????????? | | ???????????????????????????????????????????????? | | ???????????????????????????????????????????????? | | ???????????????????????????????????????????????? | | ???????????????????????????????????????????????? | | ???????????????????????????????????????????????? | | ???????????????????????????????????????????????? | | ???????????????????????????????????????????????? | | ???????????????????????????????????????????????? | | ???????????????????????????????????????????????? | | ???????????????????????????????????????????????? | | ???????????????????????????????????????????????? | | ???????????????????????????????????????????????? | | ???????????????????????????????????????????????? | +----------------------------------------------------+ Best States ------------- Heat Dissipation 122 Coolant Potential 100 Energy Generation 32 Energy Capacity 415 Matter Stores 400 Matter Capacity 400 Sight Range 19 Robot Scan Range 20 Terrain Scan Density 10 Armor Coverage 1025 Resistance: TH 20 Resistance: EX 20 Weapon Cycling 30 Phase Shifting 5 Evasion (%) 60 Armor Integrity Analysis 30 Kinecelleration 30 Item Schematics ----------------- Flak Cannon | -8/Recycling | Hacked Robot Schematics ------------------ None Fabricated ------------ Nothing Repaired ---------- Nothing Alien Tech Used ----------------- None Achievements -------------- None Challenges ------------ None RPGLIKE | -11 -10 -10 -8 -8 -6 -6 -6 -6 -6 --------- Run | Yrd Mat Sub Rec Scr Fac Ext Cet Arc Hub Levels Raised 16 | . 1 1 2 . 3 3 2 1 3 XP Earned 27216 | 3000 2560 1500 2260 650 4045 4340 2722 1597 4542 XP Spent 26735 | 1350 2600 1800 2300 . 5370 4565 . 3100 5650 Upgrades 80 | 4 4 3 4 . 27 16 . 2 20 Power Slot 1 | . 1 . . . . . . . . Propulsion Slot 2 | 1 . . 1 . . . . . . Utility Slot 6 | . 2 . . . 1 . . 2 1 Weapon Slot 3 | 1 1 . . . 1 . . . . Core Integrity 25 | . . . . . 16 . . . 9 Heat Dissipation 13 | . . . . . 7 6 . . . Matter Storage 2 | . . . . . . 2 . . . Mass Support 3 | 1 . 2 . . . . . . . Inventory Capacity 1 | 1 . . . . . . . . . Sight Range 3 | . . 1 . . 2 . . . . Sensor Range 10 | . . . . . . . . . 10 Ranged Accuracy 3 | . . . 3 . . . . . . TH Resistance % 4 | . . . . . . 4 . . . EX Resistance % 4 | . . . . . . 4 . . . Protomatter Created 744 | . 294 18 46 . 76 250 . 45 15 Integrity Restored 3143 | . 459 500 138 . 111 729 420 600 186 Core 2898 | . 311 403 138 . 111 729 420 600 186 Parts 245 | . 148 97 . . . . . . . Protomatter Decayed 571 | . 137 95 . . . 109 98 . 132 Game ------ Seed StrikeSigixShield Manual? 0 Play Time 02:00:10 Cumulative 113.0 hours Start 2025.05.21 @ 08:58:28 End 2025.05.23 @ 05:36:41 Sessions 3 Manual Loads 0 Difficulty Rogue Special Mode Winter2019/RPGLIKE Game No. 51 Rogue 47 Adventurer 4 Explorer 0 Win Type - Total 1 Types 1/0/0/0/0/0/0/0/0/0 Lore% 56 Gallery% 44 Achievement% 50 Wizard Run 0 Options --------- Layout 0 ASCII 0 Keyboard 0 Movement Arrows Keybinds 0 Fullscreen 2 Font 32/SmallcapsGlow Map View 88x55 Zoom Use 0% Tactical HUD 1 Map Filters NONE Filters NONE Steam 1 RUN: 93702de5-f58a-48fb-aca4-a73dc207859a